[Event "17th IND-chT Women 2019"]
[Site "Kolkata"]
[Date "2019.02.08"]
[Round "2"]
[White "Bristy Mukherjee"]
[Black "Gomes, Mary Ann"]
[Result "0-1"]
[ECO "D00"]
[WhiteElo "1915"]
[BlackElo "2317"]
[Annotator "ChessBase"]
[PlyCount "70"]
[EventDate "2019.??.??"]
[EventCountry "IND"]
[SourceTitle "playchess.com"]
[Source "ChessBase"]
[SourceQuality "1"]
[TimeControl "5400+30"]

1. d4 Nf6 2. Bg5 e6 3. Nd2 d5 4. e3 Nbd7 5. f4 Be7 6. Bd3 c5 7. c3 b6 8. Ngf3 Bb7 9. O-O h6 10. Bh4 Ne4 11. Bxe7 Qxe7 12. Ne5 O-O 13. Ndf3 Rfd8 14. Nxd7 Qxd7 15. Ne5 Qe8 16. Be2 g6 17. a4 a6 18. Qe1 Kg7 19. Qh4 f6 20. Ng4 h5 21. Nf2 Qe7 22. g4 hxg4 23. Qxg4 Rh8 24. Ra3 f5 25. Qg2 Nd2 26. Rd1 Nc4 27. Bxc4 dxc4 28. Qg3 Bd5 29. Raa1 Rag8 30. Nh3 Rh4 31. Nf2 Kf7 32. a5 g5 33. axb6 gxf4 34. exf4 Rxf4 35. Rxa6 Rgg4 {Qxf4 Rxf4} 0-1

[Event "17th IND-chT Women 2019"]
[Site "Kolkata"]
[Date "2019.02.10"]
[Round "5"]
[White "Padmini, Rout"]
[Black "Kiran, Manisha Mohanty"]
[Result "1-0"]
[ECO "B50"]
[WhiteElo "2315"]
[BlackElo "2069"]
[Annotator "NA"]
[PlyCount "87"]
[EventDate "2019.??.??"]
[EventCountry "IND"]
[SourceTitle "playchess.com"]
[Source "ChessBase"]
[SourceQuality "1"]
[TimeControl "5400+30"]

1. e4 c5 2. Nf3 d6 3. c3 Nf6 4. Be2 Nbd7 5. d3 b6 6. O-O Bb7 7. Re1 e6 8. Nbd2 Be7 9. Nf1 Rc8 10. Ng3 Rc7 11. Bf1 Qa8 12. Nd2 h5 13. f4 h4 14. Nh1 Nh5 15. Ng3 {[%emt 0:11:57]} Nhf6 {[%emt 0:18:33]} 16. Nh1 {[%emt 0:00:05]} Nh5 {[%emt 0:02:46]} 17. Qf3 {[%emt 0:05:48]} g5 {[%emt 0:03:00]} 18. fxg5 {[%emt 0:01:41]} Ne5 {[%emt 0:00:32]} 19. Qe3 {[%emt 0:00:37]} Ng6 {[%emt 0:11:02]} 20. Nf3 {[%emt 0:06:32]} Nhf4 {[%emt 0:02:17]} 21. Nf2 {[%emt 0:02:32]} Qd8 {[%emt 0:09:56]} 22. g3 {[%emt 0:32:21]} hxg3 {[%emt 0:01:52]} 23. hxg3 {[%emt 0:01:16]} Nh5 {[%emt 0:05:51]} 24. Nh2 {[%emt 0:04:55]} f6 {[%emt 0:07:21]} 25. Nfg4 {[%emt 0:07:22]} fxg5 {[%emt 0:05:10]} 26. Bg2 {[%emt 0:00:06]} Ne5 {[%emt 0:07:18]} 27. Nxe5 {[%emt 0:02:25]} dxe5 {[%emt 0:00:06]} 28. Ng4 {[%emt 0:02:25]} Qd6 {[%emt 0:00:43]} 29. c4 {[%emt 0:04:29]} Qd4 {[%emt 0:04:08]} 30. Bd2 {[%emt 0:03:35]} Qxb2 {[%emt 0:11:29]} 31. Rac1 {[%emt 0:00:18]} Qd4 {[%emt 0:03:03]} 32. Bc3 {[%emt 0:00:06]} Qxe3+ {[%emt 0:00:12]} 33. Rxe3 {[%emt 0:00:03]} Bd6 {[%emt 0:00:29]} 34. Nxe5 {[%emt 0:03:01]} Rg8 {[%emt 0:03:10]} 35. Bh3 {[%emt 0:06:29]} Re7 {[%emt 0:01:04]} 36. Rf1 {[%emt 0:01:05]} Bxe5 {[%emt 0:03:46]} 37. Bxe5 {[%emt 0:00:03]} g4 {[%emt 0:00:13]} 38. Bg2 {[%emt 0:00:07]} Rd7 {[%emt 0:01:07]} 39. Rf2 {[%emt 0:02:43]} Bc6 {[%emt 0:01:27]} 40. Bf1 {[%emt 0:00:39]} Rg5 {[%emt 0:00:27]} 41. Bc3 {[%emt 0:00:31]} Rf7 {[%emt 0:01:03]} 42. Rh2 {[%emt 0:02:07]} Rf3 {[%emt 0:00:23]} 43. Rxf3 {[%emt 0:01:10]} gxf3 {[%emt 0:00:02]} 44. Bd2 {[%emt 0:00:11]} 1-0

[Event "17th IND-chT Women 2019"]
[Site "Kolkata"]
[Date "2019.02.10"]
[Round "5"]
[White "Swati Ghate"]
[Black "Gomes, Mary Ann"]
[Result "1/2-1/2"]
[ECO "B50"]
[WhiteElo "2229"]
[BlackElo "2317"]
[Annotator "NA"]
[PlyCount "106"]
[EventDate "2019.??.??"]
[EventCountry "IND"]
[SourceTitle "playchess.com"]
[Source "ChessBase"]
[SourceQuality "1"]
[TimeControl "5400+30"]

1. e4 {[%emt 0:00:56]} c5 {[%emt 0:00:00]} 2. Nf3 {[%emt 0:00:07]} d6 {[%emt 0:00:00]} 3. c3 {[%emt 0:00:40]} Nf6 {[%emt 0:00:00]} 4. Bd3 {[%emt 0:00:33]} Nc6 {[%emt 0:00:16]} 5. Bc2 {[%emt 0:00:45]} Bg4 {[%emt 0:00:24]} 6. d3 {[%emt 0:00:40]} d5 {[%emt 0:01:06]} 7. Nbd2 {[%emt 0:04:38]} e6 {[%emt 0:05:48]} 8. h3 {[%emt 0:01:38]} Bh5 {[%emt 0:06:48]} 9. Qe2 {[%emt 0:02:43]} Be7 {[%emt 0:00:12]} 10. O-O {[%emt 0:07:11]} Qc7 {[%emt 0:02:34]} 11. Re1 {[%emt 0:06:14]} h6 {[%emt 0:07:33]} 12. Nf1 {[%emt 0:05:17]} g5 {[%emt 0:04:52]} 13. Ng3 {[%emt 0:03:23]} Bg6 {[%emt 0:04:57]} 14. d4 {[%emt 0:11:57]} cxd4 {[%emt 0:06:02]} 15. e5 {[%emt 0:13:48]} d3 {[%emt 0:02:46]} 16. Bxd3 {[%emt 0:00:08]} Bxd3 {[%emt 0:00:06]} 17. Qxd3 {[%emt 0:00:06]} Nd7 {[%emt 0:00:05]} 18. Qe2 {[%emt 0:01:37]} O-O-O {[%emt 0:01:01]} 19. a4 {[%emt 0:05:45]} h5 {[%emt 0:06:54]} 20. Bxg5 {[%emt 0:05:55]} Bxg5 {[%emt 0:01:10]} 21. Nxg5 {[%emt 0:00:02]} Ndxe5 {[%emt 0:04:18]} 22. Nxh5 {[%emt 0:07:04]} Qe7 {[%emt 0:06:32]} 23. f4 {[%emt 0:01:24]} Rdg8 {[%emt 0:02:09]} 24. Rf1 {[%emt 0:01:31]} Ng6 {[%emt 0:06:21]} 25. a5 {[%emt 0:00:34]} Nxf4 {[%emt 0:08:56]} 26. Nxf4 {[%emt 0:00:39]} Rxg5 {[%emt 0:00:17]} 27. a6 {[%emt 0:01:52]} b6 {[%emt 0:03:25]} 28. Rf2 {[%emt 0:00:42]} Qd6 {[%emt 0:04:48]} 29. Rd1 {[%emt 0:02:56]} Rh4 {[%emt 0:03:48]} 30. Qe3 {[%emt 0:01:00]} Ne7 {[%emt 0:02:31]} 31. c4 {[%emt 0:03:24]} Qc5 {[%emt 0:04:27]} 32. Qxc5+ {[%emt 0:02:48]} bxc5 {[%emt 0:00:04]} 33. cxd5 {[%emt 0:01:09]} exd5 {[%emt 0:00:42]} 34. Re1 {[%emt 0:04:53]} Nc6 {[%emt 0:02:00]} 35. Nd3 {[%emt 0:00:36]} Rg7 {[%emt 0:01:23]} 36. Nxc5 {[%emt 0:00:27]} Rxh3 {[%emt 0:01:21]} 37. Rf6 {[%emt 0:00:55]} Kc7 {[%emt 0:00:37]} 38. Rc1 {[%emt 0:02:04]} Rhg3 {[%emt 0:00:41]} 39. Nb7 {[%emt 0:00:35]} Rxg2+ {[%emt 0:00:58]} 40. Kh1 Kd7 {[%emt 0:01:10]} 41. Rd6+ {[%emt 0:01:06]} Ke8 {[%emt 0:00:40]} 42. Re1+ {[%emt 0:00:18]} Kf8 {[%emt 0:00:20]} 43. Rxc6 {[%emt 0:00:07]} R7g5 {[%emt 0:00:16]} 44. Rc8+ {[%emt 0:01:07]} Kg7 {[%emt 0:00:05]} 45. Nd6 {[%emt 0:00:35]} Rxb2 {[%emt 0:01:06]} 46. Ne8+ {[%emt 0:00:29]} Kh7 {[%emt 0:00:43]} 47. Nf6+ {[%emt 0:00:18]} Kg7 {[%emt 0:00:05]} 48. Rf1 {[%emt 0:00:14]} Rg6 {[%emt 0:00:44]} 49. Rg8+ {[%emt 0:00:12]} Kh6 {[%emt 0:00:19]} 50. Rxg6+ {[%emt 0:01:05]} Kxg6 {[%emt 0:00:59]} 51. Nxd5 {[%emt 0:00:13]} Ra2 {[%emt 0:00:28]} 52. Nb4 {[%emt 0:00:54]} Ra4 {[%emt 0:00:09]} 53. Rf4 {[%emt 0:00:17]} Kg5 {[%emt 0:00:30]} 1/2-1/2

[Event "17th IND-chT Women 2019"]
[Site "Kolkata"]
[Date "2019.02.10"]
[Round "6"]
[White "Gomes, Mary Ann"]
[Black "Abirama Srinithi, G."]
[Result "1-0"]
[ECO "A05"]
[WhiteElo "2317"]
[BlackElo "1668"]
[Annotator "NA"]
[PlyCount "91"]
[EventDate "2019.??.??"]
[EventCountry "IND"]
[SourceTitle "playchess.com"]
[Source "ChessBase"]
[SourceQuality "1"]
[TimeControl "5400+30"]

1. Nf3 {[%emt 0:00:00]} Nf6 {[%emt 0:00:00]} 2. c4 {[%emt 0:00:00]} g6 {[%emt 0:00:38]} 3. b3 {[%emt 0:00:06]} Bg7 {[%emt 0:00:29]} 4. Bb2 {[%emt 0:00:07]} O-O {[%emt 0:01:47]} 5. g3 {[%emt 0:00:07]} d5 {[%emt 0:01:57]} 6. Bg2 {[%emt 0:00:48]} c6 {[%emt 0:01:31]} 7. O-O {[%emt 0:00:11]} Bf5 {[%emt 0:03:31]} 8. d3 {[%emt 0:00:17]} Nbd7 {[%emt 0:04:46]} 9. Nbd2 {[%emt 0:01:23]} Qc7 {[%emt 0:04:24]} 10. Rc1 {[%emt 0:01:33]} dxc4 {[%emt 0:03:11]} 11. Nxc4 {[%emt 0:00:16]} Nb6 {[%emt 0:03:20]} 12. e4 {[%emt 0:07:03]} Bg4 {[%emt 0:03:29]} 13. Ne3 {[%emt 0:01:09]} Rad8 {[%emt 0:11:26]} 14. Qc2 {[%emt 0:04:46]} Bxf3 {[%emt 0:05:12]} 15. Bxf3 {[%emt 0:00:08]} e5 {[%emt 0:01:06]} 16. Rfd1 {[%emt 0:02:22]} Qe7 {[%emt 0:06:49]} 17. a4 {[%emt 0:01:38]} Nbd7 {[%emt 0:04:31]} 18. d4 {[%emt 0:01:00]} exd4 {[%emt 0:02:26]} 19. Bxd4 {[%emt 0:00:12]} Rfe8 {[%emt 0:04:06]} 20. Bxa7 {[%emt 0:17:15]} b6 {[%emt 0:14:52]} 21. Nc4 {[%emt 0:02:40]} b5 {[%emt 0:01:21]} 22. Nd6 {[%emt 0:00:48]} Ne5 {[%emt 0:01:29]} 23. Nxe8 {[%emt 0:01:52]} Nxf3+ {[%emt 0:00:35]} 24. Kg2 {[%emt 0:00:18]} Rxe8 {[%emt 0:03:54]} 25. Kxf3 {[%emt 0:08:16]} Qxa7 {[%emt 0:00:28]} 26. Qxc6 {[%emt 0:00:06]} Qe7 {[%emt 0:03:15]} 27. axb5 {[%emt 0:06:19]} Bf8 {[%emt 0:03:31]} 28. b6 {[%emt 0:07:58]} Qe5 {[%emt 0:03:26]} 29. Kg2 {[%emt 0:05:35]} Re6 {[%emt 0:01:17]} 30. Qa8 {[%emt 0:01:00]} Re8 {[%emt 0:02:39]} 31. Qa4 {[%emt 0:07:33]} Ng4 {[%emt 0:02:17]} 32. h3 {[%emt 0:04:33]} Nxf2 {[%emt 0:01:28]} 33. Kxf2 {[%emt 0:00:31]} Bc5+ {[%emt 0:00:05]} 34. Kg2 {[%emt 0:05:08]} Bxb6 {[%emt 0:00:23]} 35. Rc2 {[%emt 0:01:15]} Re7 {[%emt 0:00:28]} 36. Qa8+ {[%emt 0:01:00]} Re8 {[%emt 0:00:38]} 37. Qd5 {[%emt 0:00:42]} Qf6 {[%emt 0:00:52]} 38. Rf1 {[%emt 0:00:16]} Qe7 {[%emt 0:00:09]} 39. e5 {[%emt 0:04:39]} Rd8 {[%emt 0:00:20]} 40. Qc6 {[%emt 0:00:14]} Bd4 {[%emt 0:00:33]} 41. Qf6 {[%emt 0:02:57]} Qb7+ {[%emt 0:00:35]} 42. Rf3 {[%emt 0:01:10]} Re8 {[%emt 0:00:11]} 43. Qc6 {[%emt 0:01:55]} Qe7 {[%emt 0:00:22]} 44. Qd6 {[%emt 0:01:46]} Bxe5 {[%emt 0:00:55]} 45. Qxe7 {[%emt 0:00:06]} Rxe7 {[%emt 0:00:03]} 46. b4 {[%emt 0:00:07]} 1-0

[Event "17th IND-chT Women 2019"]
[Site "Kolkata"]
[Date "2019.02.10"]
[Round "6"]
[White "Jyothsna L"]
[Black "Padmini, Rout"]
[Result "0-1"]
[ECO "A40"]
[WhiteElo "2115"]
[BlackElo "2315"]
[Annotator "NA"]
[PlyCount "110"]
[EventDate "2019.??.??"]
[EventCountry "IND"]
[SourceTitle "playchess.com"]
[Source "ChessBase"]
[SourceQuality "1"]
[TimeControl "5400+30"]

1. d4 {[%emt 0:01:00]} e6 {[%emt 0:00:00]} 2. Nf3 {[%emt 0:00:16]} b6 {[%emt 0:00:25]} 3. Bf4 {[%emt 0:01:28]} Bb7 {[%emt 0:00:07]} 4. e3 {[%emt 0:00:13]} f5 {[%emt 0:01:50]} 5. Be2 {[%emt 0:01:43]} Nf6 {[%emt 0:00:10]} 6. h3 {[%emt 0:00:54]} Be7 {[%emt 0:06:35]} 7. O-O {[%emt 0:01:26]} O-O {[%emt 0:02:17]} 8. c4 {[%emt 0:02:41]} Ne4 {[%emt 0:02:24]} 9. Nc3 {[%emt 0:06:24]} Nxc3 {[%emt 0:02:47]} 10. bxc3 {[%emt 0:00:25]} d6 {[%emt 0:00:05]} 11. Nd2 {[%emt 0:02:56]} Nd7 {[%emt 0:01:15]} 12. Bf3 {[%emt 0:04:08]} Bxf3 {[%emt 0:00:20]} 13. Qxf3 {[%emt 0:02:40]} c5 {[%emt 0:08:39]} 14. Rfd1 {[%emt 0:02:15]} Qc7 {[%emt 0:01:39]} 15. Rac1 {[%emt 0:00:54]} Kh8 {[%emt 0:02:58]} 16. Bh2 {[%emt 0:06:02]} Rad8 {[%emt 0:02:40]} 17. e4 {[%emt 0:24:49]} f4 {[%emt 0:04:22]} 18. Qe2 {[%emt 0:03:51]} e5 {[%emt 0:15:09]} 19. Nf3 {[%emt 0:02:40]} Bf6 {[%emt 0:00:24]} 20. dxe5 {[%emt 0:02:41]} Bxe5 {[%emt 0:00:38]} 21. Rd3 {[%emt 0:07:20]} Rde8 {[%emt 0:02:45]} 22. Rcd1 {[%emt 0:02:03]} Nf6 {[%emt 0:00:41]} 23. Nxe5 {[%emt 0:05:59]} dxe5 {[%emt 0:00:17]} 24. f3 {[%emt 0:02:16]} Rd8 {[%emt 0:02:26]} 25. Qd2 {[%emt 0:05:57]} Rxd3 {[%emt 0:01:32]} 26. Qxd3 {[%emt 0:00:06]} Kg8 {[%emt 0:00:51]} 27. Kf1 {[%emt 0:02:57]} Kf7 {[%emt 0:00:43]} 28. Bg1 {[%emt 0:01:05]} Ke7 {[%emt 0:00:50]} 29. Bf2 {[%emt 0:00:11]} g5 {[%emt 0:00:33]} 30. h4 {[%emt 0:02:07]} h6 {[%emt 0:00:57]} 31. Qc2 {[%emt 0:02:33]} Rd8 {[%emt 0:00:19]} 32. a4 {[%emt 0:02:31]} Rxd1+ {[%emt 0:00:45]} 33. Qxd1 {[%emt 0:00:04]} Qd7 {[%emt 0:00:22]} 34. Qxd7+ {[%emt 0:01:34]} Kxd7 {[%emt 0:00:30]} 35. Ke2 {[%emt 0:00:20]} Ne8 {[%emt 0:01:16]} 36. Kd3 {[%emt 0:00:49]} Nd6 {[%emt 0:00:39]} 37. Be1 {[%emt 0:00:27]} Kc6 {[%emt 0:00:25]} 38. hxg5 {[%emt 0:00:39]} hxg5 {[%emt 0:00:05]} 39. Bf2 {[%emt 0:00:26]} Nb7 {[%emt 0:00:26]} 40. Kc2 {[%emt 0:00:22]} Na5 {[%emt 0:00:32]} 41. Kd3 {[%emt 0:00:03]} Kd7 {[%emt 0:04:52]} 42. Be1 {[%emt 0:00:04]} Ke6 {[%emt 0:00:37]} 43. Bf2 {[%emt 0:00:01]} Kf6 {[%emt 0:00:14]} 44. Be1 {[%emt 0:00:30]} Kg6 {[%emt 0:00:09]} 45. Bf2 {[%emt 0:00:01]} Kh5 {[%emt 0:00:06]} 46. g3 {[%emt 0:00:17]} Nc6 {[%emt 0:01:54]} 47. Ke2 {[%emt 0:02:16]} g4 {[%emt 0:04:47]} 48. Be1 {[%emt 0:00:07]} Kg5 {[%emt 0:01:13]} 49. Bd2 {[%emt 0:01:02]} Na5 {[%emt 0:00:57]} 50. gxf4+ {[%emt 0:00:11]} exf4 {[%emt 0:00:04]} 51. e5 {[%emt 0:01:01]} g3 {[%emt 0:01:22]} 52. e6 {[%emt 0:00:25]} Nc6 {[%emt 0:00:15]} 53. Kf1 {[%emt 0:00:27]} Ne7 {[%emt 0:00:40]} 54. Kg2 {[%emt 0:00:37]} Ng6 {[%emt 0:00:07]} 55. Bc1 {[%emt 0:00:30]} Kf5 {[%emt 0:00:09]} 0-1

[Event "17th IND-chT Women 2019"]
[Site "Kolkata"]
[Date "2019.02.11"]
[Round "7"]
[White "Padmini, Rout"]
[Black "Rukhsar Bano"]
[Result "1-0"]
[ECO "C50"]
[WhiteElo "2315"]
[BlackElo "1331"]
[Annotator "NA RC"]
[PlyCount "83"]
[EventDate "2019.??.??"]
[EventCountry "IND"]
[SourceTitle "playchess.com"]
[Source "ChessBase"]
[SourceQuality "1"]
[TimeControl "5400+30"]

1. e4 {[%emt 0:00:00]} e5 {[%emt 0:00:00]} 2. Nf3 {[%emt 0:00:00]} Nc6 {[%emt 0:00:00]} 3. Bc4 {[%emt 0:00:05]} Be7 {[%emt 0:00:01]} 4. O-O {[%emt 0:00:33]} Nf6 {[%emt 0:00:09]} 5. d3 {[%emt 0:01:19]} O-O {[%emt 0:00:10]} 6. Re1 {[%emt 0:00:43]} d6 {[%emt 0:01:57]} 7. c3 {[%emt 0:00:31]} Na5 {[%emt 0:03:12]} 8. Bb5 {[%emt 0:00:09]} Bd7 {[%emt 0:02:44]} 9. Bxd7 {[%emt 0:00:36] LiveBook: 19 Games C55: Two Knights: 4 d3, 4 d4 exd4 5 e5 and Max Lange Attack} Qxd7 {[%emt 0:00:44]} 10. Nbd2 {[%emt 0:00:15]} Nc6 {[%emt 0:07:33]} 11. d4 {[%emt 0:02:46]} Bd8 $146 {[%emt 0:11:52]} ({Predecessor:} 11... Rfe8 12. d5 Nb8 13. b4 c6 14. Qb3 cxd5 15. exd5 Na6 16. Nf1 Nc7 17. Ne3 a5 18. a3 axb4 19. cxb4 Nb5 20. Bb2 {1-0 (20) Rodriguez Vila,A (2435)-El Ters,A (2207) Punta del Este 2014}) 12. a3 {[%emt 0:05:46]} exd4 {[%emt 0:13:00]} 13. cxd4 {[%emt 0:00:07]} Ne7 {[%emt 0:01:01]} 14. Nf1 {[%emt 0:02:23]} Ng6 {[%emt 0:00:41]} 15. Ng3 {[%emt 0:00:06]} c6 {[%emt 0:03:04]} 16. h3 {[%emt 0:01:35]} Qc7 $14 {[%emt 0:04:06]} 17. h4 {[%emt 0:05:17]} h6 {[%emt 0:10:00]} 18. h5 {[%emt 0:00:14]} Nh8 {[%emt 0:01:07]} 19. Nh4 {[%emt 0:01:49]} Nh7 {[%emt 0:08:05]} 20. Nhf5 {[%emt 0:00:38]} Ng5 {[%emt 0:01:10]} 21. Qg4 {[%emt 0:00:42]} Kh7 {[%emt 0:02:14]} 22. f4 {[%emt 0:00:35]} Ne6 {[%emt 0:01:43]} 23. d5 {[%emt 0:00:49]} g6 {[%emt 0:01:19]} 24. dxe6 {[%emt 0:03:31]} gxf5 {[%emt 0:00:17]} 25. Qxf5+ {[%emt 0:00:04]} Kg8 {[%emt 0:01:39]} 26. e7 {[%emt 0:00:49]} Qxe7 {[%emt 0:08:11]} 27. Qg4+ {[%emt 0:00:11]} Kh7 {[%emt 0:01:41]} 28. Nf5 {[%emt 0:00:06]} Qf6 {[%emt 0:01:39]} 29. e5 {[%emt 0:00:11]} dxe5 {[%emt 0:02:01]} 30. fxe5 {[%emt 0:00:07]} Rg8 {[%emt 0:00:49]} 31. Qxg8+ {[%emt 0:00:15]} Kxg8 {[%emt 0:00:05]} 32. exf6 {[%emt 0:00:03]} Bxf6 {[%emt 0:00:19]} 33. Re2 {[%emt 0:00:21]} Bg7 {[%emt 0:02:06]} 34. Bxh6 {[%emt 0:00:12]} Bxh6 {[%emt 0:00:56]} 35. Nxh6+ {[%emt 0:00:02]} Kg7 {[%emt 0:00:15]} 36. Nf5+ {[%emt 0:00:05]} Kf6 {[%emt 0:00:28]} 37. Rf1 {[%emt 0:00:05]} Kg5 {[%emt 0:00:26]} 38. g4 {[%emt 0:00:13]} Kxg4 {[%emt 0:02:24]} 39. Rg2+ {[%emt 0:03:03]} Kxh5 {[%emt 0:04:31]} 40. Rf3 {[%emt 0:00:35]} Ng6 {[%emt 0:00:54]} 41. Rh3+ {[%emt 0:00:05]} Nh4 {[%emt 0:00:24]} 42. Rxh4# {[%emt 0:00:05]} 1-0